bitfinex/quotes_ETHUSD_20240822
["timestamp","ask_amount","ask_price","bid_price","bid_amount"]
[1724366849507,3.80766,2626.3,2626.0,1.633727]
[1724366849666,0.03601089,2626.1,2626.0,1.633727]
[1724366849874,3.80766,2626.3,2626.0,1.633727]
[1724366850280,0.03601089,2626.2,2626.0,1.633727]
[1724366850679,3.80766,2626.3,2626.0,1.633727]
[1724366850880,0.03601089,2626.1,2626.0,1.633727]
[1724366851086,3.80766,2626.3,2626.0,1.633727]
[1724366851307,2.4432,2626.4,2626.0,1.633727]
[1724366851524,0.03601089,2626.2,2626.1,0.9250037]
[1724366851727,6.2507,2626.4,2626.1,0.9250037]
[1724366851900,0.03601089,2626.2,2626.1,0.9250037]
[1724366852101,6.2507,2626.4,2626.1,0.9250037]
[1724366852641,2.4868,2626.2,2625.8,4.94734]
[1724366852784,2.4868,2626.2,2625.6,11.07946136]
[1724366852785,3.80801,2626.1,2625.6,11.07946136]
[1724366852985,3.80801,2626.1,2625.7,1.139]
[1724366853186,7.61606,2626.1,2625.8,1.22184614]
[1724366853425,0.03601089,2626.0,2625.8,1.22184614]
[1724366856028,6.29458,2626.2,2625.8,1.22184614]
[1724366856231,0.03601089,2626.1,2625.8,1.22184614]
[1724366856525,0.03601089,2626.1,2625.8,5.03017614]
[1724366856698,0.03601089,2626.1,2625.9,0.61691761]
[1724366857399,0.03601089,2626.1,2625.9,1.75591761]
[1724366859421,0.03601089,2626.1,2626.0,3.80807]
[1724366859623,2.4884,2626.5,2626.1,3.80788]
[1724366859834,0.03564017,2626.4,2626.1,4.94688]
[1724366861639,0.03564017,2626.4,2626.1,5.822375]
[1724366863112,0.03564017,2626.4,2626.2,3.80776]
[1724366864233,0.03564017,2626.4,2626.2,7.61547]
[1724366864803,0.03564017,2626.4,2626.2,3.80771]
[1724366865327,0.03564017,2626.4,2626.2,3.8077]
[1724366865525,0.03564017,2626.4,2626.2,4.7707185]
[1724366867939,0.03564017,2626.4,2626.2,4.7707085]
[1724366871138,0.03564017,2626.4,2626.2,4.7706985]
[1724366871743,0.03564017,2626.4,2626.3,4.94663]
[1724366871942,3.80678,2626.9,2626.4,3.80735]
[1724366872092,6.05888,2626.9,2626.5,1.139]
[1724366874831,0.03610879,2626.8,2626.5,1.139]
[1724366878743,3.84301879,2626.8,2626.5,1.139]
[1724366881319,0.03610879,2626.8,2626.5,1.139]
[1724366887811,2.3499,2626.6,2626.3,1.139]
[1724366888007,6.15718,2626.6,2626.1,4.94688]
[1724366888214,0.03633267,2626.5,2626.1,4.94688]
[1724366888453,0.03633267,2626.5,2625.9,13.55380136]
[1724366888614,0.03633267,2626.5,2626.1,1.139]
[1724366888615,3.84367267,2626.5,2626.1,1.139]
[1724366889655,3.84367267,2626.5,2626.1,4.9469]
[1724366890659,0.03633267,2626.5,2626.1,8.7548]
[1724366890955,0.03633267,2626.5,2626.1,10.75260761]
[1724366891329,0.03633267,2626.5,2626.4,7.61498]
[1724366891524,2.3542,2627.0,2626.7,3.80692]
[1724366891728,2.3542,2627.0,2626.7,4.94592]
[1724366892859,3.80614,2627.4,2626.8,3.80681]
[1724366892860,2.3542,2627.3,2626.8,3.80681]
[1724366893161,2.3542,2627.3,2626.9,3.80666]
[1724366893467,2.3542,2627.3,2626.9,4.94566]
[1724366895253,2.3542,2627.3,2626.8,3.8068]
[1724366895463,2.3542,2627.3,2626.9,3.80669]
[1724366897531,2.3542,2627.3,2627.0,3.80662]
[1724366899234,2.449,2627.5,2627.1,3.80647]
[1724366899634,2.449,2627.5,2627.2,3.80632]
[1724366899867,2.449,2627.5,2627.2,8.75158]
[1724366900063,2.449,2627.5,2627.2,4.94526]
[1724366900456,2.449,2627.5,2627.2,4.69526]
[1724366900851,2.449,2627.5,2627.4,1.139]
[1724366901036,2.449,2627.5,2627.2,3.80626]
[1724366901037,6.25462,2627.7,2627.2,4.94526]
[1724366901253,3.455017,2627.7,2627.2,3.80625]
[1724366901490,7.260687,2627.7,2627.2,3.80625]
[1724366902895,3.455017,2627.7,2627.4,3.80603]
[1724366903074,3.455017,2627.7,2627.3,3.80618]
[1724366903279,2.449,2627.7,2627.3,3.80618]
[1724366903951,2.449,2627.7,2627.2,4.94525]
[1724366904155,2.449,2627.7,2627.2,8.75149]
[1724366904703,0.03710865,2627.6,2627.2,4.94524]
[1724366905759,0.03710865,2627.6,2627.2,3.80624]
[1724366906102,2.4783,2627.5,2627.2,3.80624]
[1724366906670,0.03710865,2627.4,2627.2,3.80624]
[1724366910855,0.03710865,2627.4,2627.0,3.80651]
[1724366911099,2.4435,2627.3,2626.9,3.80675]
[1724366911507,2.48088822,2627.3,2626.9,3.80675]
[1724366914504,2.48088822,2627.3,2626.8,3.80683]
[1724366914505,7.29640504,2627.3,2626.8,3.80683]
[1724366914705,7.29640504,2627.3,2626.4,6.80743]
[1724366914706,2.3551,2627.1,2626.5,3.80734]
[1724366914905,2.3551,2626.9,2626.5,3.80734]
[1724366915265,0.03738822,2626.8,2626.5,3.80734]
[1724366916165,0.03738822,2626.8,2626.5,3.80727]
[1724366916501,2.3551,2626.7,2626.5,3.80734]
[1724366916904,0.03710864,2626.6,2626.5,3.80734]
[1724366920987,2.3551,2626.7,2626.6,3.8072]
[1724366922526,2.59061,2626.7,2626.5,3.80733]
[1724366922762,2.59061,2626.7,2626.3,3.80749]
[1724366922763,2.3551,2626.6,2626.3,3.80749]
[1724366928437,2.3551,2626.6,2626.2,3.80778]
[1724366932371,2.4264,2626.5,2626.2,3.80778]
[1724366933072,2.4264,2626.5,2626.1,4.94688]
[1724366934750,0.03651444,2626.4,2626.1,4.94688]
[1724366937435,0.03651444,2626.4,2626.1,1.139]
[1724366937679,0.03651444,2626.4,2626.2,3.80776]
[1724366938455,0.03651444,2626.4,2626.3,8.75426]
[1724366938836,2.3639,2626.9,2626.3,8.75426]
[1724366938837,2.3639,2626.9,2626.7,3.80705]
[1724366939037,2.3639,2626.9,2626.7,3.80582355]
[1724366939340,2.3639,2626.9,2626.6,3.80717]
[1724366940289,2.3639,2626.9,2626.5,4.94621]
[1724366944368,2.3639,2626.9,2626.7,3.80697]
[1724366944569,2.3639,2626.9,2626.7,4.94597]
[1724366944796,2.3639,2626.9,2626.7,1.139]
[1724366946305,3.80612,2627.4,2626.7,1.139]
[1724366946306,2.2513,2627.1,2626.7,1.139]
[1724366946474,2.2513,2627.3,2627.0,1.139]
[1724366947855,2.2513,2627.3,2627.0,4.94561]
[1724366949775,0.0367032,2627.2,2627.0,4.94561]
[1724366950103,2.2513,2627.3,2627.2,3.80633]
[1724366950315,2.2513,2627.3,2627.2,4.94533]
[1724366950606,2.2966,2627.5,2627.2,4.94533]
[1724366952474,2.2966,2627.5,2627.2,1.139]
[1724366952823,6.26782,2627.4,2627.0,1.139]
[1724366955667,6.26782,2627.4,2627.0,4.94561]
[1724366956117,2.4617,2627.4,2627.0,4.94561]
[1724366958963,2.4617,2627.4,2627.1,3.80647]
[1724366959978,2.4617,2627.4,2627.0,1.139]
[1724366960397,7.275196,2627.4,2626.7,3.80697]
[1724366960609,7.275196,2627.4,2626.7,8.75294]
[1724366960610,2.254,2627.2,2626.7,8.75294]
[1724366960820,2.254,2627.2,2626.8,3.80689]
[1724366964880,0.03601439,2627.1,2626.8,3.80689]
[1724366966830,2.3814,2627.0,2626.7,4.94596]
[1724366966979,0.03601439,2627.1,2626.7,4.94596]
[1724366966980,2.4947,2627.3,2627.1,3.80641]
[1724366969304,2.4947,2627.3,2627.0,3.80662]
[1724366971212,2.4947,2627.3,2627.0,7.61307]
[1724366971524,2.4947,2627.3,2627.0,3.80652]
[1724366973252,2.4947,2627.3,2627.0,7.61306]
[1724366973432,2.4947,2627.3,2627.0,3.80652]
[1724366975663,2.4947,2627.3,2627.1,1.139]
[1724366979916,0.03599339,2627.2,2627.1,1.139]
[1724366980208,2.4947,2627.3,2627.1,1.139]
[1724366980386,0.03599339,2627.2,2627.1,1.139]
[1724366980569,2.4947,2627.3,2627.1,1.139]
[1724366980770,0.03599339,2627.2,2627.1,1.139]
[1724366981069,2.4947,2627.3,2627.1,1.139]
[1724366981268,0.03599339,2627.2,2627.1,1.139]
[1724366981671,2.4947,2627.3,2627.1,1.139]
[1724366981898,0.03599339,2627.2,2627.1,1.139]
[1724366982270,2.4947,2627.3,2627.1,1.139]
[1724366982520,0.03599339,2627.2,2627.1,1.139]
[1724366982923,2.4947,2627.3,2627.1,1.139]
[1724366983215,0.03599339,2627.2,2627.1,1.139]
[1724366983436,2.4947,2627.3,2627.1,1.139]
[1724366983578,0.03599339,2627.2,2627.1,1.139]
[1724366983780,2.4947,2627.3,2627.1,1.139]
[1724366983985,0.03599339,2627.2,2627.1,1.139]
[1724366984305,2.4947,2627.3,2627.1,1.139]
[1724366984619,2.3276,2627.1,2626.9,1.139]
[1724366986810,2.3276,2627.1,2626.6,11.16711]
[1724366987133,2.3276,2627.1,2626.6,12.30611]
[1724366987423,0.03599339,2627.0,2626.6,12.30611]
[1724366987971,0.03599339,2627.0,2626.7,3.80698]
[1724366988376,2.3276,2627.1,2626.7,3.80698]
[1724366988572,0.03586749,2626.9,2626.7,3.80698]
[1724366988806,3.321642,2627.1,2626.7,3.80698]
[1724366989010,0.03586749,2626.8,2626.7,3.80698]
[1724366989325,3.321642,2627.1,2626.7,3.80698]
[1724366989530,0.03586749,2626.8,2626.7,3.80698]
[1724366989734,2.3276,2627.1,2626.7,3.80698]
[1724366990039,3.0404012,2627.1,2626.7,3.80698]
[1724366990328,0.03586749,2627.0,2626.7,3.80698]
[1724366991401,0.03586749,2627.0,2626.7,4.94598]
[1724366991402,2.3315,2626.9,2626.7,4.94598]
[1724366991818,0.03586749,2626.8,2626.7,1.139]
[1724366992131,0.03586749,2626.8,2626.5,4.94634]
[1724366994029,0.03586749,2626.8,2626.5,8.75361]
[1724366998231,0.03586749,2626.8,2626.6,3.8072]
[1724366998861,0.03586749,2626.8,2626.5,4.94627]
[1724366999069,0.03586749,2626.8,2626.3,11.16755]
[1724366999070,2.4904,2626.7,2626.3,11.16755]
[1724366999214,2.4904,2626.7,2626.3,3.80755]
[1724366999522,0.03566465,2626.6,2626.4,4.94648]
[1724367000713,0.03566465,2626.6,2626.5,3.80734]
[1724367000957,0.03566465,2626.6,2626.5,8.490069]
[1724367001265,2.4904,2626.9,2626.7,3.807]
[1724367003954,2.4904,2626.9,2626.6,4.94619]
[1724367006036,2.4904,2626.9,2626.7,3.80704]
[1724367006236,2.4904,2626.9,2626.6,4.94619]
[1724367009871,0.03539881,2626.8,2626.6,4.94619]
[1724367010570,0.03539881,2626.8,2626.4,3.80748]
[1724367010571,2.4935,2626.7,2626.4,3.80748]
[1724367010734,2.4935,2626.7,2626.4,4.94648]
[1724367011070,0.03539881,2626.6,2626.4,4.94648]
[1724367011283,2.4935,2626.7,2626.4,4.94648]
[1724367011569,0.03539184,2626.5,2626.4,4.94648]
[1724367011749,2.4935,2626.7,2626.4,1.139]
[1724367012083,3.80749,2626.4,2626.0,4.60678032]
[1724367012217,3.80749,2626.4,2626.0,4.94696]
[1724367012571,3.80735,2626.5,2626.0,4.94696]
[1724367012771,3.80735,2626.5,2626.0,8.75494]
[1724367012927,0.03539184,2626.4,2626.1,3.80791]
[1724367013739,0.03539184,2626.4,2626.2,1.139]
[1724367014323,0.03539184,2626.4,2626.2,4.94676]
[1724367014737,2.4935,2626.6,2626.2,4.94676]
[1724367015065,2.4935,2626.6,2626.2,4.94669]
[1724367015287,0.03539184,2626.5,2626.2,8.75439]
[1724367015424,0.03539184,2626.5,2626.2,4.94669]
[1724367015619,0.03539184,2626.5,2626.4,4.94649]
[1724367015838,3.80658,2627.1,2626.4,4.94649]
[1724367015839,2.3668,2626.9,2626.6,3.80712]
[1724367016062,2.3668,2626.9,2626.7,1.139]
[1724367016823,2.3945,2627.2,2626.7,4.94592]
[1724367017040,3.189029,2627.2,2626.8,3.80687]
[1724367017721,2.3945,2627.2,2626.8,3.80687]
[1724367017927,2.3945,2627.2,2626.9,1.139]
[1724367018559,2.3823,2627.4,2627.0,3.80661]
[1724367019127,6.18835,2627.4,2627.0,3.80661]
[1724367019827,2.3823,2627.4,2627.0,7.61316]
[1724367020176,2.3823,2627.4,2627.1,1.139]
[1724367022132,6.18835,2627.4,2627.1,1.139]
[1724367022336,7.187746,2627.4,2626.9,1.139]
[1724367022487,7.187746,2627.4,2626.9,4.94575]
[1724367022685,6.18835,2627.4,2626.9,4.94575]
[1724367025037,0.03563667,2627.3,2626.9,4.94575]
[1724367027037,3.80658,2627.1,2626.4,7.36]
[1724367027191,3.80658,2627.1,2626.5,1.139]
[1724367027733,0.03573461,2627.0,2626.5,1.139]
[1724367028104,0.03573461,2627.0,2626.7,3.80703]
[1724367028363,6.21223,2627.2,2626.7,3.80703]
[1724367028559,0.03569264,2626.9,2626.7,3.80703]
[1724367028840,7.214082,2627.2,2626.7,3.80703]
[1724367029042,0.03569264,2626.8,2626.7,3.80703]
[1724367029197,7.214082,2627.2,2626.7,3.80703]
[1724367029539,0.03569264,2627.1,2626.7,3.80703]
[1724367030108,2.4272,2627.0,2626.6,7.61428]
[1724367030309,2.46286465,2627.0,2626.6,3.80711]
[1724367031188,2.46286465,2627.0,2626.6,7.61423]
[1724367032410,2.46286465,2627.0,2626.7,3.80705]
[1724367034333,2.46286465,2627.0,2626.6,4.94611]
[1724367034498,2.46286465,2627.0,2626.6,8.75322]
[1724367035541,2.46286465,2627.0,2626.7,3.80702]
[1724367039776,2.46286465,2627.0,2626.4,7.36]
[1724367039777,2.2561,2626.9,2626.4,11.16736]
[1724367039976,2.2561,2626.9,2626.5,3.80734]
[1724367040181,0.03557373,2626.8,2626.5,3.80734]
[1724367040469,7.61347,2627.0,2626.5,3.80734]
[1724367040470,2.4857,2626.7,2626.5,3.80734]
[1724367040672,0.24857,2626.6,2626.3,4.94662]
[1724367040876,2.4857,2626.6,2626.3,8.75418]
[1724367041182,2.4857,2626.6,2626.3,4.94656]
[1724367041345,0.03557373,2626.5,2626.4,3.80749]
[1724367042134,0.03557373,2626.5,2626.4,7.61498]
[1724367042334,0.03557373,2626.5,2626.4,9.311082]
[1724367042533,2.309,2627.0,2626.6,3.80708]
[1724367042935,0.03557373,2626.9,2626.6,3.80708]
[1724367043509,0.03557373,2626.9,2626.7,4.94598]
[1724367044582,0.03557373,2626.9,2626.7,3.80698]
[1724367045281,0.03557373,2626.9,2626.5,8.75344]
[1724367046373,0.03557373,2626.9,2626.5,10.0397042]
[1724367046882,2.4867,2626.8,2626.5,6.2324642]
[1724367047040,2.52219676,2626.8,2626.5,4.9462]
[1724367059588,2.52219676,2626.8,2626.2,11.16777]
[1724367059812,2.4826,2626.6,2626.2,12.30677]
[1724367060176,0.03551076,2626.5,2626.2,12.30677]
[1724367060777,0.03551076,2626.5,2626.3,3.80763]
[1724367061119,0.03551076,2626.5,2626.4,8.75398]
[1724367061338,2.4826,2626.9,2626.5,3.80721]
[1724367061608,2.4826,2626.9,2626.6,1.139]
[1724367063005,2.4826,2626.9,2626.6,4.9462]
[1724367065473,6.26878,2627.1,2626.7,3.80701]
[1724367066534,2.4622,2627.1,2626.7,3.80701]
[1724367067481,2.4622,2627.1,2626.8,1.139]
[1724367069684,0.03551076,2627.0,2626.8,1.139]
[1724367069897,0.03551076,2627.0,2626.8,1.7211349]
[1724367073766,0.03551076,2627.0,2626.9,7.61352]
[1724367073972,3.806,2627.5,2627.1,3.80646]
[1724367073973,2.3796,2627.4,2627.1,3.80646]
[1724367074138,2.3796,2627.4,2627.1,4.94546]
[1724367075078,2.3796,2627.4,2627.1,1.139]
[1724367075940,3.806,2627.5,2627.1,1.139]
[1724367077925,7.61199,2627.5,2627.1,1.139]
[1724367078327,2.3796,2627.3,2626.9,4.94576]
[1724367078528,2.3796,2627.3,2626.9,3.80676]
[1724367080429,6.1858,2627.3,2626.9,3.80676]
[1724367080734,6.1858,2627.3,2626.7,8.75286]
[1724367080957,6.1858,2627.3,2626.7,9.983454]
[1724367081395,3.80633,2627.2,2626.7,6.176514]
[1724367081563,2.3796,2627.1,2626.7,4.94592]
[1724367082889,2.3796,2627.1,2626.7,8.7529]
[1724367083089,2.3796,2627.1,2626.7,4.94592]
[1724367084742,0.03581156,2627.0,2626.7,4.94592]
[1724367086252,0.03581156,2627.0,2626.7,8.7529]
[1724367088099,0.03581156,2627.0,2626.7,4.94592]
[1724367088489,2.3669,2626.9,2626.6,7.36]
[1724367088670,2.3669,2626.9,2626.6,11.16718]
[1724367089005,0.03581156,2626.8,2626.6,11.16718]
[1724367089960,0.03581156,2626.8,2626.6,3.80718]
[1724367090174,2.3383,2626.7,2626.5,3.8072]
[1724367090504,2.3383,2626.7,2626.3,4.60636032]
[1724367090686,0.03581156,2626.6,2626.4,4.94648]
[1724367091067,0.03581156,2626.6,2626.5,3.80734]
[1724367092004,0.03581156,2626.6,2626.5,7.61468]
[1724367092511,2.3383,2627.0,2626.7,3.80702]
[1724367093099,2.3383,2627.0,2626.8,3.80689]
[1724367093303,2.3383,2627.0,2626.7,3.80702]
[1724367093604,2.3383,2627.0,2626.8,3.80691]
[1724367094490,2.3445,2627.4,2627.0,3.8066]
[1724367094871,5.3445,2627.4,2627.0,3.8066]
[1724367095186,9.15055,2627.4,2626.9,3.80676]
[1724367095659,2.3445,2627.4,2627.0,3.8066]
[1724367095865,2.3445,2627.4,2627.0,3.80661]
[1724367096280,2.3445,2627.4,2626.9,4.7547042]
[1724367096785,6.15054,2627.4,2626.9,4.7547042]
[1724367096986,3.80604,2627.4,2626.9,4.7547042]
[1724367097186,2.3445,2627.3,2626.9,3.80676]
[1724367098532,3.80634,2627.2,2626.7,4.533672]
[1724367098712,2.3445,2627.1,2626.7,4.533672]
[1724367099084,2.3445,2627.1,2626.7,8.340642]
[1724367099528,2.3445,2627.1,2626.8,3.80689]
[1724367099727,0.03558072,2627.0,2626.8,4.7548462]
[1724367100794,0.03558072,2627.0,2626.8,5.8938462]
[1724367101193,6.19588,2627.3,2626.8,5.8938462]
[1724367101422,2.3897,2627.3,2626.9,1.04275182]
[1724367101627,2.3897,2627.3,2627.0,4.94554]
[1724367101943,2.3897,2627.3,2627.1,3.80644]
[1724367102143,2.3897,2627.3,2627.0,4.94554]
[1724367102295,2.3897,2627.3,2627.0,3.80654]
[1724367104620,2.3897,2627.3,2627.0,7.61308]
[1724367104844,2.3897,2627.3,2627.0,4.681748]
[1724367105395,2.3897,2627.3,2627.0,5.820748]
[1724367106344,2.3206,2627.6,2627.2,4.94533]
[1724367107298,2.3206,2627.6,2627.3,3.80614]
[1724367107748,0.03588149,2627.5,2627.3,3.80614]
[1724367108067,0.03588149,2627.5,2627.4,8.75108]
[1724367108353,2.3206,2627.9,2627.7,3.8056]
[1724367108529,2.3206,2627.9,2627.7,4.94453]
[1724367111349,2.3206,2628.1,2627.7,4.94453]
[1724367111705,2.3206,2628.1,2627.8,3.80532]
[1724367114207,2.3206,2628.1,2627.8,4.680305]
[1724367114840,0.03621014,2628.0,2627.8,4.680305]
[1724367117259,0.03621014,2628.0,2627.9,4.94431]
[1724367117760,6.12513,2628.5,2628.0,3.8051]
[1724367118255,6.12513,2628.5,2627.9,4.94431]
[1724367118256,3.80462,2628.4,2627.9,1.139]
[1724367118427,6.12522,2628.4,2627.9,4.9443]
[1724367118623,6.12522,2628.4,2627.9,6.6427775]
[1724367119613,6.12522,2628.4,2627.9,10.4480175]
[1724367119915,2.3206,2628.4,2628.1,1.139]
[1724367120113,2.3206,2628.4,2628.1,4.94395]
[1724367120361,2.3206,2628.4,2628.1,5.99632319]
[1724367120811,2.3206,2628.4,2628.1,2.19137319]
[1724367121011,2.3206,2628.4,2627.9,10.4478875]
[1724367121854,2.3206,2628.4,2628.0,3.80515]
[1724367123732,6.12526,2628.4,2627.9,2.8374775]
[1724367123913,6.12526,2628.4,2627.9,6.6427475]
[1724367124568,6.12526,2628.4,2627.9,10.4480175]
[1724367124769,6.12526,2628.4,2628.0,1.13230025]
[1724367125370,2.3206,2628.4,2628.0,1.13230025]
[1724367126168,2.3206,2628.4,2628.1,1.139]
[1724367127722,2.3206,2628.4,2628.1,4.94396]
[1724367128122,2.3206,2628.4,2628.0,4.93746025]
[1724367128334,2.3206,2628.4,2628.1,1.139]
[1724367129722,0.03678353,2628.3,2628.1,1.139]
[1724367130557,0.03678353,2628.3,2628.1,4.94394]
[1724367130764,2.253,2628.6,2628.1,4.94394]
[1724367130929,0.0369653,2628.5,2628.1,4.94394]
[1724367131130,0.0369653,2628.5,2628.2,1.109633]
[1724367134775,0.0369653,2628.5,2628.2,4.914513]
[1724367136331,0.0369653,2628.5,2628.2,3.80488]
[1724367139733,0.0369653,2628.5,2628.2,3.8048]
[1724367140678,2.2587,2628.4,2628.2,3.80488]
[1724367140991,2.2587,2628.4,2628.2,3.80481]
[1724367141194,3.80424,2628.7,2628.3,1.139]
[1724367141350,2.2587,2628.6,2628.3,1.139]
[1724367142546,2.2587,2628.6,2628.4,3.80452]
[1724367144801,0.03724486,2628.5,2628.4,3.80452]
[1724367145494,0.03724486,2628.5,2628.2,7.60956]
[1724367145813,2.3537,2628.4,2628.2,3.80477]
[1724367146112,2.3537,2628.4,2628.2,4.679655]
[1724367146324,2.3537,2628.2,2627.8,3.80537]
[1724367146612,2.3537,2628.2,2627.8,4.94444]
[1724367146817,0.03727282,2628.1,2627.9,3.8053]
[1724367147108,0.03727282,2628.1,2627.7,7.36]
[1724367147109,0.03727282,2628.1,2628.0,8.74934]
[1724367147495,2.3537,2628.2,2628.0,8.74934]
[1724367147708,0.03726583,2628.1,2628.0,8.74934]
[1724367148005,0.03726583,2628.1,2628.0,5.819104]
[1724367148380,0.03726583,2628.1,2628.0,1.139]
[1724367148969,2.3537,2628.2,2628.0,1.139]
[1724367149189,0.03720992,2628.1,2628.0,1.139]
[1724367149786,0.03720992,2628.1,2627.8,4.94435]
[1724367150306,0.03720992,2628.1,2627.8,8.74972]
[1724367150522,0.03720992,2628.1,2627.8,4.94435]
[1724367152516,0.03720992,2628.1,2627.8,8.74971]
[1724367152741,0.03720992,2628.1,2627.8,5.819321]
[1724367153942,0.03720992,2628.1,2627.8,9.624701]
[1724367154639,0.03720992,2628.1,2627.8,5.819321]
[1724367154849,0.03720992,2628.1,2627.9,3.8053]
[1724367164475,0.03720992,2628.1,2627.8,9.624701]
[1724367165676,0.03720992,2628.1,2627.9,3.8053]
[1724367170166,2.472,2628.0,2627.9,3.8053]
[1724367170359,2.50925885,2628.0,2627.9,3.8053]
[1724367171333,2.50925885,2628.0,2627.8,3.80535]
[1724367173384,2.50925885,2628.0,2627.8,9.624731]
[1724367173572,2.50925885,2628.0,2627.8,8.74973]
[1724367174100,2.50925885,2628.0,2627.8,4.94435]
[1724367174396,2.50925885,2628.0,2627.9,3.80531]
[1724367174596,0.03725885,2628.0,2627.9,3.80531]
[1724367174897,2.379,2628.2,2627.9,4.680276]
[1724367175099,0.03725885,2628.0,2627.9,3.80531]
[1724367175595,2.379,2628.2,2627.9,3.80531]
[1724367175798,0.03725885,2628.0,2627.9,3.80531]
[1724367176009,2.379,2628.2,2627.9,3.80531]
[1724367176162,0.03725885,2628.1,2627.9,3.80531]
[1724367176513,0.03725885,2628.1,2628.0,0.874966]
[1724367177917,0.03725885,2628.1,2627.8,3.80535]
[1724367178119,0.03725885,2628.1,2628.0,3.80517]
[1724367179277,2.4797,2628.4,2628.0,3.80517]
[1724367179476,0.03726585,2628.1,2628.0,3.80517]
[1724367179723,2.4797,2628.4,2628.0,3.80517]
[1724367179928,0.03726585,2628.1,2628.0,3.80517]
[1724367180230,0.03726585,2628.1,2628.0,4.680122]
[1724367180382,6.2843,2628.4,2628.0,4.680122]
[1724367180584,0.03726585,2628.1,2627.8,7.6107]
[1724367180809,2.258,2628.2,2627.8,3.80532]
[1724367181014,0.03726585,2628.0,2627.8,3.80532]
[1724367181216,2.258,2628.2,2627.8,3.80532]
[1724367181380,0.03726585,2627.9,2627.8,3.80532]
[1724367181579,2.258,2628.2,2627.8,4.68031]
[1724367181822,0.03726585,2627.9,2627.8,4.68031]
[1724367181980,2.258,2628.2,2627.8,4.68031]
[1724367182181,0.03726585,2627.9,2627.8,4.68031]
[1724367182409,2.258,2628.2,2627.8,3.80532]
[1724367182594,0.03726585,2627.9,2627.8,3.80532]
[1724367182819,2.258,2628.2,2627.8,3.80532]
[1724367183021,0.03726585,2627.9,2627.8,3.80532]
[1724367183225,2.258,2628.2,2627.8,3.80532]
[1724367183496,0.03726585,2627.9,2627.8,3.80532]
[1724367183695,2.258,2628.2,2627.8,4.68031]
[1724367183932,2.258,2628.2,2627.8,3.80532]
[1724367184149,0.03726585,2628.1,2627.8,3.80532]
[1724367184909,0.03726585,2628.1,2627.9,4.94429]
[1724367185318,2.3603,2628.4,2628.0,3.80517]
[1724367185611,2.3603,2628.4,2628.0,4.25611235]
[1724367186413,2.3603,2628.4,2628.1,3.80502]
[1724367188053,2.3603,2628.4,2628.1,4.94394]
[1724367188213,3.80351,2629.2,2628.3,4.94368]
[1724367188214,6.20572,2628.8,2628.3,4.94368]
[1724367188407,3.80416,2628.7,2628.3,1.139]
[1724367188600,3.80416,2628.7,2628.3,1.633381]
[1724367188916,2.4017,2628.8,2628.3,5.437971]
[1724367189110,2.4017,2628.8,2628.5,1.139]
[1724367189800,0.0376013,2628.7,2628.5,1.139]
[1724367190148,2.4017,2628.8,2628.5,1.139]
[1724367190350,0.0376013,2628.6,2628.5,1.139]
[1724367190556,2.4017,2628.8,2628.5,1.9147801]
[1724367190723,0.0376013,2628.6,2628.5,1.9147801]
[1724367190925,2.4017,2628.8,2628.5,0.7757801]
[1724367191134,0.0376013,2628.6,2628.4,4.94352]
[1724367191342,2.4017,2628.8,2628.4,4.94352]
[1724367191818,0.0376013,2628.7,2628.4,4.94352]
[1724367192019,2.4017,2628.8,2628.4,4.94352]
[1724367192223,0.0376013,2628.6,2628.4,6.0997831]
[1724367192444,2.4017,2628.8,2628.4,6.0997831]
[1724367192645,0.0376013,2628.5,2628.4,6.0997831]
[1724367192955,2.4017,2628.8,2628.4,6.0997831]
[1724367193175,0.0376013,2628.5,2628.4,6.0997831]
[1724367193663,2.4017,2628.8,2628.4,6.0997731]
[1724367193819,0.0376013,2628.5,2628.4,6.0997731]
[1724367194163,2.4017,2628.8,2628.4,6.0997731]
[1724367194321,0.0376013,2628.5,2628.4,6.0997731]
[1724367194860,2.4017,2628.8,2628.4,6.0997731]
[1724367195066,0.0376013,2628.5,2628.4,6.0997731]
[1724367195265,2.4017,2628.8,2628.4,6.0997731]
[1724367195445,0.0376013,2628.5,2628.4,6.0997731]
[1724367195634,2.4017,2628.8,2628.4,9.9042831]
[1724367195836,0.0376013,2628.5,2628.4,9.9042831]
[1724367196042,2.2591,2629.0,2628.6,3.80423]
[1724367196227,2.2591,2629.0,2628.7,1.139]
[1724367196763,2.2591,2629.0,2628.7,4.94308]
[1724367197166,2.2591,2629.0,2628.7,1.139]
[1724367197721,2.2591,2629.0,2628.5,4.9433]
[1724367198135,6.06288,2629.0,2628.5,4.9433]
[1724367199096,2.2591,2628.7,2628.2,3.80479]
[1724367199235,3.80432,2628.6,2628.2,3.80479]
[1724367199431,3.80432,2628.6,2628.3,1.139]
[1724367200076,2.2591,2628.6,2628.2,3.80479]
[1724367200281,2.2591,2628.6,2628.2,4.94379]
[1724367204271,2.2591,2628.6,2628.2,3.80479]
[1724367204487,6.06341,2628.6,2628.2,4.94379]
[1724367204711,0.03799954,2628.5,2628.2,4.94379]
[1724367206412,0.03799954,2628.5,2628.2,8.7486]
[1724367207570,0.03799954,2628.5,2628.2,4.94379]
[1724367207775,2.2868,2628.4,2628.2,4.94379]
[1724367208201,0.03799954,2628.3,2628.2,4.94379]
[1724367209174,0.03799954,2628.3,2628.2,5.818671]
[1724367209531,2.2868,2628.6,2628.2,5.818671]
[1724367209824,0.03799954,2628.3,2628.2,5.818671]
[1724367210127,0.03799954,2628.5,2628.2,5.818671]
[1724367210333,2.2868,2628.4,2628.2,4.94379]
[1724367210482,2.32479954,2628.4,2628.2,3.80479]
[1724367212639,2.32479954,2628.4,2628.0,4.94408]